Cogmind - Beta 9.3 --- EXPLORER MODE // 2019.12.28 @ 00:50:15 // Winter2019/RPGLIKE Player: Kek Result: Destroyed by P-70 Sage with High-powered Shock Rifle Performance ------------- Evolutions (5) 2500 Regions Visited (11) 2200 Robots Destroyed (174) 870 Value Destroyed (6384) 6384 Prototype IDs (3) 60 Alien Tech Used (0) 0 Bonus (2142) 2142 TOTAL SCORE: 14156 Bonus ------- Pacifist 200 High Alert Combat Kills 1456 Follower Combat Kills 417 Aligned with FarCom 300 Friendly Fire -231 Cogmind --------- Core Integrity 0/1300 Matter 294/400 Energy 295/465 System Corruption 6% Temperature Cool (538) Movement Hovering (110) Ox1 Location -5/Factory Parts ------- > --- POWER (2) -------- Micro Nuclear Core Neutrino Core > --- PROPULSION (4) --- Gravmag Array Gravmag Array > --- UTILITY (6) ------ Advanced Targeting Computer Target Analyzer Core Analyzer Component Analysis Suite Drone Bay (0/2) > --- WEAPON (4) ------- Wave Gun Plasma Cannon Nova Cannon Proton Missile Launcher > --- INVENTORY (6) ---- Micro Nuclear Core Remote Datajack Peak State ------------ > --- POWER ------------ Micro Nuclear Core Neutrino Core > --- PROPULSION ------- Improved Airjet Combat Airjet Gravmag Array > --- UTILITY ---------- Advanced Targeting Computer Target Analyzer Core Analyzer Core Shielding Component Analysis Suite Drone Bay > --- WEAPON ----------- Neutron Cannon Nova Cannon Proton Missile Launcher Heavy Rocket Launcher > --- INVENTORY -------- Micro Nuclear Core Gravmag Array Wave Gun Plasma Cannon Remote Datajack [Rating: 74] Favorites ----------- Power Micro Nuclear Core Engine Ion Engine Power Core Micro Nuclear Core Propulsion Improved Hover Unit Leg Aluminum Leg Hover Unit Improved Hover Unit Flight Unit Xenon Bombardment Thruster Utility Component Analysis Suite Device Component Analysis Suite Processor Core Analyzer Protection Core Shielding Weapon Rocket Launcher Energy Gun Wave Gun Energy Cannon Plasma Cannon Ballistic Gun Light Assault Rifle Ballistic Cannon Advanced Assault Cannon Launcher Rocket Launcher Special Weapon Remote Datajack Build | -11 -10 -9 -9 -9 -8 -8 -7 -7 -7 -6 -5 ------- Run | Scr Mat Mat Min Exi Min Mat Fac Low Low Fac Fac Slots Evolved 12 | . . . 6 . 2 . 2 . . 2 . Power 1 | . . . . . 1 . . . . . . Propulsion 3 | . . . . . 1 . 1 . . 1 . Utility 5 | . . . 3 . . . 1 . . 1 . Weapon 3 | . . . 3 . . . . . . . . Parts Attached 48 | 4 . 3 6 . . 5 7 2 . 13 8 Power 5 | 1 . . 1 . . . 1 1 . . 1 Engine 1 | 1 . . . . . . . . . . . Core 4 | . . . 1 . . . 1 1 . . 1 Reactor . | . . . . . . . . . . . . Propulsion 14 | 1 . 1 . . . 2 5 . . 4 1 Treads . | . . . . . . . . . . . . Leg 1 | 1 . . . . . . . . . . . Wheel . | . . . . . . . . . . . . Hover 12 | . . 1 . . . 2 4 . . 4 1 Flight 1 | . . . . . . . 1 . . . . Utility 8 | 1 . . 3 . . 1 1 . . 2 . Device 3 | . . . 2 . . . . . . 1 . Storage . | . . . . . . . . . . . . Processor 4 | 1 . . 1 . . 1 . . . 1 . Hackware . | . . . . . . . . . . . . Protection 1 | . . . . . . . 1 . . . . Artifact . | . . . . . . . . . . . . Weapon 21 | 1 . 2 2 . . 2 . 1 . 7 6 Energy Gun 2 | . . . . . . . . . . 1 1 Energy Cannon 6 | . . . 1 . . 1 . 1 . . 3 Ballistic Gun 1 | 1 . . . . . . . . . . . Ballistic Cannon 2 | . . . . . . . . . . 2 . Launcher 8 | . . 2 1 . . 1 . . . 2 2 Special Weapon 2 | . . . . . . . . . . 2 . Impact Weapon . | . . . . . . . . . . . . Slashing Weapon . | . . . . . . . . . . . . Piercing Weapon . | . . . . . . . . . . . . Special Melee Weapon . | . . . . . . . . . . . . Unidentified Prototypes 3 | . . . . . . 2 . . . 1 . Parts Lost 3 | . . . . . . 1 . . . . 2 Power 1 | . . . . . . 1 . . . . . Propulsion . | . . . . . . . . . . . . Utility 1 | . . . . . . . . . . . 1 Weapon 1 | . . . . . . . . . . . 1 Highest Loss Streak 2 | . . . . . . 1 . . . . 2 Average Slot Usage (%) 90 | . 100 100 86 80 66 85 99 100 100 86 91 Engine 3 | . 25 25 7 . . . . . . . . Core 10 | . . . 9 10 8 8 13 14 14 12 12 Leg 1 | . 25 . . . . . . . . . . Hover 15 | . . 24 16 10 8 15 20 21 21 12 16 Device 12 | . . . 9 20 16 16 14 14 14 13 12 Processor 17 | . 25 25 21 20 16 16 14 14 14 15 18 Protection 3 | . . . . . . . 7 7 7 6 6 Energy Cannon 9 | . . . 9 10 8 11 14 14 14 6 5 Ballistic Gun 1 | . 25 13 . . . . . . . . . Ballistic Cannon 1 | . . . . . . . . . . 4 5 Launcher 12 | . . 11 12 10 8 15 14 14 14 11 11 Naked Turns . | . . . . . . . . . . . . Heaviest Build 63 | 6 6 9 20 20 20 28 35 38 38 45 63 Greatest Support 88 | 10 10 10 18 18 18 36 55 55 55 88 88 Greatest Overweight (x) 1 | . . 1 1 1 1 1 . . . . 1 Average Overweight (x) . | . . . . 1 1 . . . . . . Largest Inventory Capacity 6 | . . . 4 4 4 4 4 6 6 6 6 Average Capacity 4 | . . . 2 4 4 4 4 5 6 6 6 Most Carried 6 | . . . 4 3 2 4 4 6 6 6 6 Average Carried 3 | . . . . 2 2 2 3 5 6 5 5 Final Capacity 6 | . . . 4 4 4 4 4 6 6 6 6 Final Carried 6 | . . . 2 3 2 4 4 6 6 6 2 Class Distribution -------------------- 54% | Hacker-Mutant 25% | Hacker-Scout 20% | Hacker-Bomber Dominant Class ---------------- Hacker-Mutant | -10/Materials Hacker-Mutant | -9/Materials Hacker-Mutant | -9/Mines Hacker-Mutant | -9/Exiles Hacker-Mutant | -8/Mines Hacker-Bomber | -8/Materials Hacker-Mutant | -7/Factory Hacker-Bomber | -7/Lower Caves Hacker-Mutant | -7/Lower Caves Hacker-Scout | -6/Factory Hacker-Scout | -5/Factory Resources | -11 -10 -9 -9 -9 -8 -8 -7 -7 -7 -6 -5 ----------- Run | Scr Mat Mat Min Exi Min Mat Fac Low Low Fac Fac Matter Collected 3078 | 240 . 254 230 . . 467 230 262 176 142 1077 Remotely . | . . . . . . . . . . . . Salvage Created 5093 | . . 242 133 . . 687 331 305 652 121 2622 Parts 248 | . . 15 15 . . 42 14 9 20 8 125 Haulers Intercepted 3 | . . 1 . . . . . . . . 2 Recyclers Shooed 8 | . . 4 . . . 1 1 . . . 2 Parts Field Recycled . | . . . . . . . . . . . . Retrieved Matter . | . . . . . . . . . . . . Parts Self-Destructed . | . . . . . . . . . . . . Prevented . | . . . . . . . . . . . . Kills | -11 -10 -9 -9 -9 -8 -8 -7 -7 -7 -6 -5 ------- Run | Scr Mat Mat Min Exi Min Mat Fac Low Low Fac Fac Combat Hostiles Destroyed 122 | . . 7 7 . . 23 6 13 18 3 45 Guns 2 | . . 1 . . . . . . . . 1 Cannons 44 | . . . 1 . . 9 2 7 10 1 14 AOE 76 | . . 6 6 . . 14 4 6 8 2 30 Classes Destroyed 17 | . . 5 . . . 5 1 1 2 1 2 Worker 12 | . . . . . . 2 3 . . . 7 Builder 15 | . . . . . . 4 1 . . . 10 Hauler 3 | . . 1 . . . . . . . . 2 Recycler 6 | . . 2 1 . . 1 . . . . 2 Mechanic 2 | . . . . . . . . . . . 2 Operator 2 | . . . . . . . 1 . . . 1 Watcher 10 | . . . . . . 1 2 . . . 7 Swarmer 28 | . . 3 7 . . 3 5 4 3 . 3 Saboteur 1 | . . . . . . . . . . . 1 Grunt 57 | . . 1 . . . 13 . 5 9 1 28 Brawler 9 | . . . . . . 1 . 2 3 1 2 Duelist 3 | . . . . . . . . . 1 . 2 Protector 1 | . . . . . . . . . 1 . . Sentry 14 | . . 3 . . . 5 1 1 1 . 3 Hunter 4 | . . . . . . 1 . . . . 3 Programmer 3 | . . . . . . . . . . 1 2 Behemoth 2 | . . . . . . . . 1 . . 1 Decomposer 2 | . . . . . . . . 1 1 . . Best Kill Streak 18 | . . 4 3 . . 18 5 5 6 2 15 Combat Bots Only 12 | . . 3 3 . . 12 3 5 6 2 10 Max Kills in Single Turn 4 | . . 2 3 . . 3 3 3 3 2 4 Gunslinging . | . . . . . . . . . . . . Exploded 3 | . . 2 3 . . 2 2 2 2 2 3 Melee . | . . . . . . . . . . . . Uniques/NPCs Destroyed . | . . . . . . . . . . . . Combat | -11 -10 -9 -9 -9 -8 -8 -7 -7 -7 -6 -5 -------- Run | Scr Mat Mat Min Exi Min Mat Fac Low Low Fac Fac Damage Taken 3640 | . . 287 27 . . 288 91 238 295 19 2395 Core 2896 | . . 236 20 . . 229 69 185 230 14 1913 Absorbed by Shields . | . . . . . . . . . . . . Redirected to Core 2087 | . . 155 20 . . 180 54 179 199 14 1286 Core Remaining (%) 90 | 100 100 . . . 65 80 . . 100 100 . Volleys Fired 222 | . . 32 5 . . 39 15 16 30 8 77 Largest 4 | . . 1 2 . . 4 4 4 4 4 4 Hottest 281 | . . 30 113 . . 214 214 215 215 170 281 Shots Fired 516 | . . 32 8 . . 93 43 54 76 12 198 Gun 18 | . . 9 . . . . . . . . 9 Cannon 290 | . . . 3 . . 53 30 32 60 4 108 Launcher 202 | . . 23 5 . . 40 13 22 16 2 81 Special 6 | . . . . . . . . . . 6 . Kinetic 66 | . . 9 . . . . . . . 2 55 Thermal 197 | . . . 3 . . 53 30 18 30 1 62 Explosive 155 | . . 23 5 . . 40 13 22 16 2 34 Electromagnetic 92 | . . . . . . . . 14 30 1 47 Robot Hit Streak 38 | . . 21 3 . . 38 26 15 18 22 33 Robot Miss Streak 2 | . . 1 1 . . 1 1 1 1 1 2 Penetration Max . | . . . . . . . . . . . . Secondary Targets . | . . . . . . . . . . . . Shots Hit Robots 366 | . . 26 3 . . 72 28 34 58 9 136 Core Hits 405 | . . 21 10 . . 68 22 37 51 5 191 Critical Hits 9 | . . . . . . 2 3 . . . 4 Critical Kills 5 | . . . . . . . 2 . . . 3 Critical Parts Destroyed 4 | . . . . . . 2 1 . . . 1 Melee Attacks . | . . . . . . . . . . . . Impact . | . . . . . . . . . . . . Slashing . | . . . . . . . . . . . . Piercing . | . . . . . . . . . . . . Sneak Attacks . | . . . . . . . . . . . . Combat Hostiles . | . . . . . . . . . . . . Follow-up Attacks . | . . . . . . . . . . . . Damage Inflicted 21300 | . . 985 361 . . 3292 952 1778 3010 242 10680 Guns 201 | . . 55 . . . . . . . . 146 Cannons 5989 | . . . 51 . . 947 529 605 1255 64 2538 Explosions 15038 | . . 922 303 . . 2330 418 1173 1755 162 7975 Melee . | . . . . . . . . . . . . Ramming 72 | . . 8 7 . . 15 5 . . 16 21 Kinetic 1410 | . . 55 . . . . . . . 31 1324 Thermal 5075 | . . . 51 . . 947 529 464 761 33 2290 Explosive 11949 | . . 922 303 . . 2330 418 1100 1660 162 5054 Electromagnetic 2794 | . . . . . . . . 214 589 . 1991 Impact . | . . . . . . . . . . . . Slashing . | . . . . . . . . . . . . Piercing . | . . . . . . . . . . . . Highest Corruption 6 | . . 2 2 2 2 . . . . . 6 Average Corruption 2 | . . 2 2 2 2 . . . . . 2 Corruption Purged . | . . . . . . . . . . . . Effects 44 | . . 4 8 4 2 . . . . . 26 Message Errors 12 | . . . 2 1 1 . . . . . 8 Matter Fused 4 | . . . . . . . . . . . 4 Heat Flow Errors 7 | . . 1 1 1 1 . . . . . 3 Energy Discharges 5 | . . 1 1 2 . . . . . . 1 Data Loss (minor) 8 | . . 2 4 . . . . . . . 2 Targeting Errors 6 | . . . . . . . . . . . 6 Weapon Failures 2 | . . . . . . . . . . . 2 Overload Shots . | . . . . . . . . . . . . Overflow Damage 352 | . . 50 7 . . 30 11 2 64 . 188 Projectiles 121 | . . . 7 . . 2 1 2 22 . 87 Explosions 231 | . . 50 . . . 28 10 . 42 . 101 Melee . | . . . . . . . . . . . . Knockbacks 7 | . . . . . . . 1 . . . 6 Impact 1 | . . . . . . . 1 . . . . Kinetic 5 | . . . . . . . . . . . 5 Secondary 1 | . . . . . . . . . . . 1 Self-Inflicted Damage 156 | . . 49 3 . . 7 11 29 30 8 19 Shots 9 | . . 3 . . . . 1 2 2 . 1 Rammed 10 | . . 3 1 . . 2 2 . . 1 1 Targets Rammed 10 | . . 3 1 . . 2 2 . . 1 1 Kicked . | . . . . . . . . . . . . Crushed . | . . . . . . . . . . . . Highest Temperature 640 | . . 204 184 258 107 270 319 549 423 84 640 Average Temperature 136 | . . 34 59 136 62 99 99 186 140 36 160 Received Heat Transfer 1266 | . . 105 . . . 225 24 105 144 9 654 Effects 47 | . . . . 1 . 7 2 7 4 . 26 Shutdowns 11 | . . . . . . . . 2 2 . 7 Energy Bleed 9 | . . . . . . 1 . 2 2 . 4 Interference 17 | . . . . 1 . 6 2 3 . . 5 Short Circuit 1 | . . . . . . . . . . . 1 Damage (major) 7 | . . . . . . . . . . . 7 Damage (core) 2 | . . . . . . . . . . . 2 Siege Activations . | . . . . . . . . . . . . Robots Corrupted . | . . . . . . . . . . . . Combat Hostiles . | . . . . . . . . . . . . Parts Fried 4 | . . . . . . . . . . . 4 Impact Corruptions . | . . . . . . . . . . . . Robots Melted . | . . . . . . . . . . . . Combat Hostiles . | . . . . . . . . . . . . Parts Melted 4 | . . . . . . 1 1 . 2 . . Heat Transferred 7091 | . . . 100 . . 1766 1009 750 1375 50 2041 Parts Sabotaged 2 | . . . . . . . . . . . 2 Parts Stolen . | . . . . . . . . . . . . Parts Stripped . | . . . . . . . . . . . . Power Chain Reactions 8 | . . . . . . . . 1 1 . 6 Missiles Intercepted . | . . . . . . . . . . . . Alert | -11 -10 -9 -9 -9 -8 -8 -7 -7 -7 -6 -5 ------- Run | Scr Mat Mat Min Exi Min Mat Fac Low Low Fac Fac Peak Influence 2119 | . 17 177 152 . . 680 359 . . 62 2119 Average Influence 212 | . 11 55 79 . . 244 177 . . 8 673 Maximum Alert Level 5 | . . . . . . 2 1 . . . 5 Low Security (%) 65 | 100 100 100 100 . 100 55 71 . . 100 36 Level 1 8 | . . . . . . 5 28 . . . 14 Level 2 3 | . . . . . . 39 . . . . 5 Level 3 7 | . . . . . . . . . . . 14 Level 4 6 | . . . . . . . . . . . 11 Level 5 8 | . . . . . . . . . . . 16 High Security . | . . . . . . . . . . . . Max Security . | . . . . . . . . . . . . Squads Dispatched 29 | . . 1 1 . 1 6 1 . 1 1 17 Investigation 2 | . . . 1 . 1 . . . . . . Extermination 3 | . . . . . . . . . . 1 2 Reinforcement 13 | . . 1 . . . 3 1 . . . 8 Assault 7 | . . . . . . . . . 1 . 6 Garrison 4 | . . . . . . 3 . . . . 1 Intercept . | . . . . . . . . . . . . Construction Impeded 5 | . . . . . . 1 . . . . 4 Haulers Reinforced . | . . . . . . . . . . . . Stealth | -11 -10 -9 -9 -9 -8 -8 -7 -7 -7 -6 -5 --------- Run | Scr Mat Mat Min Exi Min Mat Fac Low Low Fac Fac Distress Signals 9 | . . 1 . . . 3 1 . . . 4 Communications Jammed . | . . . . . . . . . . . . Distress Signals . | . . . . . . . . . . . . Times Spotted 179 | . 1 12 7 . . 30 10 12 24 3 80 Peak Tracking Total 17 | . 1 5 3 . . 6 5 5 9 2 17 Tactical Retreats 14 | . . 1 . . . 2 . . 5 . 6 Traps | -11 -10 -9 -9 -9 -8 -8 -7 -7 -7 -6 -5 ------- Run | Scr Mat Mat Min Exi Min Mat Fac Low Low Fac Fac Traps Triggered 3 | . . . . . . . . . . . 3 Indirectly 2 | . . . . . . . . . . . 2 Trap Hack Attempts . | . . . . . . . . . . . . Triggered . | . . . . . . . . . . . . Disarmed . | . . . . . . . . . . . . Reprogrammed . | . . . . . . . . . . . . Reused . | . . . . . . . . . . . . Traps Extracted . | . . . . . . . . . . . . Installed . | . . . . . . . . . . . . Triggered 4 | . . . . . . . . 2 2 . . Machines | -11 -10 -9 -9 -9 -8 -8 -7 -7 -7 -6 -5 ---------- Run | Scr Mat Mat Min Exi Min Mat Fac Low Low Fac Fac Machines Disabled 39 | . . 3 3 . . 2 4 1 1 3 22 Max in Single Turn 8 | . . 1 3 . . 1 2 1 . 3 8 Garrison Access 1 | . . . . . . . . . . . 1 Machines Sabotaged . | . . . . . . . . . . . . Garrisons Compromised . | . . . . . . . . . . . . Overloaded Fab Kills . | . . . . . . . . . . . . Fab Network Shutdowns 1 | . . . . . . . . . . . 1 Hacking | -11 -10 -9 -9 -9 -8 -8 -7 -7 -7 -6 -5 --------- Run | Scr Mat Mat Min Exi Min Mat Fac Low Low Fac Fac Machines Accessed 19 | . 2 3 1 . 1 2 1 1 2 3 3 Terminals 10 | . 2 3 . . 1 2 1 . . . 1 Fabricators 2 | . . . . . . . . . . . 2 Repair Stations 2 | . . . . . . . . . . 2 . Recycling Units 1 | . . . . . . . . . . 1 . Scanalyzers . | . . . . . . . . . . . . Garrison Access . | . . . . . . . . . . . . Total Hacks 28 | . 2 3 1 . 3 4 1 1 7 3 3 Successful 21 | . 2 3 1 . 1 2 1 1 7 . 3 Failed 7 | . . . . . 2 2 . . . 3 . Catastrophic . | . . . . . . . . . . . . Database Lockouts . | . . . . . . . . . . . . Manual 5 | . . 1 . . . 2 1 . 1 . . Terminals 14 | . 2 3 . . 3 4 1 . . . 1 Fabricators 2 | . . . . . . . . . . . 2 Repair Stations 2 | . . . . . . . . . . 2 . Recycling Units 1 | . . . . . . . . . . 1 . Scanalyzers . | . . . . . . . . . . . . Garrison Access . | . . . . . . . . . . . . Terminal Hacks 19 | . 2 3 1 . 1 2 1 1 7 . 1 Record 7 | . . . . . 1 . . . 6 . . Open Door 3 | . . . 1 . . . . 1 1 . . Emergency Access Points 1 | . . 1 . . . . . . . . . Unreport Threat 1 | . . 1 . . . . . . . . . Dispatch Records 1 | . 1 . . . . . . . . . . Recall Reinforcements 2 | . . . . . . 1 . . . . 1 Hauler Manifests 1 | . . . . . . 1 . . . . . Zone Layout 3 | . 1 1 . . . . 1 . . . . Fabricator Hacks 2 | . . . . . . . . . . . 2 Build 2 | . . . . . . . . . . . 2 Repair Station Hacks . | . . . . . . . . . . . . Recycling Unit Hacks . | . . . . . . . . . . . . Scanalyzer . | . . . . . . . . . . . . Garrison Access Hacks . | . . . . . . . . . . . . Unauthorized Hacks . | . . . . . . . . . . . . Terminals . | . . . . . . . . . . . . Fabricators . | . . . . . . . . . . . . Repair Stations . | . . . . . . . . . . . . Recycling Units . | . . . . . . . . . . . . Scanalyzers . | . . . . . . . . . . . . Garrison Access . | . . . . . . . . . . . . Data Cores Recovered . | . . . . . . . . . . . . Used . | . . . . . . . . . . . . Hacking Detections 6 | . . 2 . . 1 1 . . . 2 . Full Trace Events 1 | . . . . . 1 . . . . . . Feedback Events . | . . . . . . . . . . . . Feedback Blocked . | . . . . . . . . . . . . Robot Schematics Acquired . | . . . . . . . . . . . . Robots Built . | . . . . . . . . . . . . Matter . | . . . . . . . . . . . . Time . | . . . . . . . . . . . . Total Robot Build Rating . | . . . . . . . . . . . . Part Schematics Acquired . | . . . . . . . . . . . . Parts Built 1 | . . . . . . . . . . . 1 Matter 490 | . . . . . . . . . . . 490 Time 245 | . . . . . . . . . . . 245 Total Part Build Rating 8 | . . . . . . . . . . . 8 Parts Repaired . | . . . . . . . . . . . . Time . | . . . . . . . . . . . . Parts Recycled . | . . . . . . . . . . . . Recycled Matter . | . . . . . . . . . . . . Retrieved Matter . | . . . . . . . . . . . . Retrieved Components . | . . . . . . . . . . . . Parts Scanalyzed . | . . . . . . . . . . . . Part Schematics Acquired . | . . . . . . . . . . . . Parts Damaged . | . . . . . . . . . . . . Bothacking | -11 -10 -9 -9 -9 -8 -8 -7 -7 -7 -6 -5 ------------ Run | Scr Mat Mat Min Exi Min Mat Fac Low Low Fac Fac Used RIF Installer . | . . . . . . . . . . . . Robots Hacked 3 | . . . . . . . . . . 3 . Non-combat 3 | . . . . . . . . . . 3 . Combat . | . . . . . . . . . . . . Robot Hacks Applied 4 | . . . . . . . . . . 4 . parse_system 2 | . . . . . . . . . . 2 . no_distress 2 | . . . . . . . . . . 2 . Relay Couplers Released 1 | . . . . . . . . . . . 1 Machine Destruction 1 | . . . . . . . . . . . 1 Robots Rewired . | . . . . . . . . . . . . Allies Hacked . | . . . . . . . . . . . . Hacks Repelled . | . . . . . . . . . . . . Allies | -11 -10 -9 -9 -9 -8 -8 -7 -7 -7 -6 -5 -------- Run | Scr Mat Mat Min Exi Min Mat Fac Low Low Fac Fac Total Allies 5 | . . . . . . . . . 2 . 3 Largest Group 3 | . . . . . . . . . 2 . 3 Highest-Rated Group 93 | . . . . . . . . . 51 . 93 Highest-Rated Ally 31 | . . . . . . . . . 31 . 31 Total Orders 6 | . . . . . . . . . . 4 2 EXPLORE 4 | . . . . . . . . . . 2 2 RETURN 2 | . . . . . . . . . . 2 . Ally Attacks 79 | . . . . . . . . . 36 . 43 Total Damage 1176 | . . . . . . . . . 466 . 710 Kills 11 | . . . . . . . . . 6 . 5 Allies Corrupted . | . . . . . . . . . . . . Allies Melted . | . . . . . . . . . . . . Intel | -11 -10 -9 -9 -9 -8 -8 -7 -7 -7 -6 -5 ------- Run | Scr Mat Mat Min Exi Min Mat Fac Low Low Fac Fac Robot Analysis Total . | . . . . . . . . . . . . Derelict Logs Recovered 2 | . . . . . . . . 2 . . . Drone Launches 4 | . . . . . . . . . . 2 2 Drone Recoveries 2 | . . . . . . . . . . 2 . Exploration | -11 -10 -9 -9 -9 -8 -8 -7 -7 -7 -6 -5 ------------- Run | Scr Mat Mat Min Exi Min Mat Fac Low Low Fac Fac Turns Passed 7696 | 54 316 485 626 612 484 1013 641 676 829 868 1092 Spaces Moved 8659 | 50 223 457 514 510 403 965 1063 1151 1052 1182 1089 Core 16 | 16 . . . . . . . . . . . Treads . | . . . . . . . . . . . . Legs 269 | 34 223 12 . . . . . . . . . Wheels . | . . . . . . . . . . . . Hover 8374 | . . 445 514 510 403 965 1063 1151 1052 1182 1089 Flight . | . . . . . . . . . . . . Fastest Speed 50 | 50 120 60 60 120 120 56 52 52 52 51 55 Average Speed 67 | 97 120 69 114 120 120 60 52 52 52 55 55 Slowest Speed 120 | 120 120 120 120 120 120 120 56 52 52 60 110 Overloaded Moves . | . . . . . . . . . . . . Propulsion Burnouts . | . . . . . . . . . . . . Robots Hopped . | . . . . . . . . . . . . Cave-ins Triggered . | . . . . . . . . . . . . Exploration Rate (%) 52 | 4 32 33 71 90 81 60 22 98 81 27 30 Regions Visited 11 Branch Regions 5 Pre-discovered Areas 1 | . . . . . . . . 1 . . . Known Exits Taken 11 | 1 1 1 1 1 1 1 1 1 1 1 . Unknown Exits Taken . | . . . . . . . . . . . . Scrap Searched 4 | . . . . . . . . 4 . . . Spaces Dug 9 | . . . . . . . . . . . 9 Terrain Destroyed 949 | . . 72 28 . . 155 80 149 124 . 341 Melee . | . . . . . . . . . . . . Projectile 12 | . . . . . . 2 1 2 2 . 5 AOE 937 | . . 72 28 . . 153 79 147 122 . 336 Actions | -11 -10 -9 -9 -9 -8 -8 -7 -7 -7 -6 -5 --------- Run | Scr Mat Mat Min Exi Min Mat Fac Low Low Fac Fac Total 10076 | 53 271 595 541 510 404 1321 1118 1190 1269 1388 1416 Wait 1002 | . 49 98 8 . 1 287 19 1 168 166 205 Move 8648 | 49 222 456 513 509 402 964 1062 1150 1051 1181 1089 Hop . | . . . . . . . . . . . . Pick Up 33 | . . . 6 1 . 8 6 4 . 7 1 Fast Attach 21 | 4 . 3 2 . . . 4 . . 3 5 Attach 18 | . . . 4 . . 5 3 . . 3 3 Detach 2 | . . . . . . 1 . . . 1 . Swap 10 | . . . . . . 1 . 2 . 7 . Drop 34 | . . 3 2 . 1 2 7 2 . 10 7 Fire 222 | . . 32 5 . . 39 15 16 30 8 77 Melee . | . . . . . . . . . . . . Ram 10 | . . 3 1 . . 2 2 . . 1 1 Kick . | . . . . . . . . . . . . Crush . | . . . . . . . . . . . . Escape Stasis . | . . . . . . . . . . . . Rewire . | . . . . . . . . . . . . Trap . | . . . . . . . . . . . . Miscellaneous 76 | . . . . . . 12 . 15 20 1 28 Route ------- -11/Scrapyard -10/Materials -9/Materials -9/Mines (discovered 3 exits: *Mat x2 / *Exi) -9/Exiles -8/Mines (discovered 2 exits: *Mat x2) -8/Materials -7/Factory -7/Lower Caves -7/Lower Caves (discovered 2 exits: *Fac / *Dat) -6/Factory (discovered 3 exits: *Fac x3) -5/Factory History --------- Turn | Location | Event 22 | -11/Scrapyard | Identified exit to Materials 22 | -11/Scrapyard | Discovered exit to Materials (range 16) 55 | -11/Scrapyard | Entered Materials 278 | -10/Materials | Identified exit to Materials 278 | -10/Materials | Discovered exit to Materials (range 14) 303 | -10/Materials | Build established: Hacker-Mutant 371 | -10/Materials | Entered another Materials area 373 | -9/Materials | Reached level 2 373 | -9/Materials | Reached level 3 780 | -9/Materials | Reached level 4 830 | -9/Materials | Identified exit to Mines 830 | -9/Materials | Discovered exit to Mines (range 12) 856 | -9/Materials | Entered Mines 877 | -9/Mines | Deemed a non-threat by the Exiles lab entrance 877 | -9/Mines | Identified exit to Exiles 877 | -9/Mines | Discovered exit to Exiles (range 5) 1040 | -9/Mines | Met a Derelict shopkeep closing up shop 1149 | -9/Mines | Upgraded with Utility slot (x3) 1149 | -9/Mines | Upgraded with Weapon slot (x3) 1297 | -9/Mines | Reached level 5 1319 | -9/Mines | Identified exit to Materials 1319 | -9/Mines | Discovered exit to Materials (range 15) 1325 | -9/Mines | Received a Rocket Launcher from a helpful Derelict 1338 | -9/Mines | Discovered exit to Materials (range 9) 1482 | -9/Mines | Entered Exiles 1512 | -9/Exiles | Met 8R-AWN 1534 | -9/Exiles | Met EX-HEX 1589 | -9/Exiles | Met EX-DEC 1622 | -9/Exiles | Visited The Gauntlet 1823 | -9/Exiles | Identified exit to Mines 1823 | -9/Exiles | Discovered exit to Mines (range 10) 1912 | -9/Exiles | Met EX-BIN 1932 | -9/Exiles | Aligned with FarCom system 1933 | -9/Exiles | Given EX-Vault access code 2094 | -9/Exiles | Entered Mines 2094 | -8/Mines | Upgraded with Power slot (x1) 2094 | -8/Mines | Upgraded with Propulsion slot (x1) 2114 | -8/Mines | Discovered exit to Materials (range 9) 2564 | -8/Mines | Discovered exit to Materials (range 10) 2578 | -8/Mines | Entered Materials 2580 | -8/Materials | Reached level 6 2580 | -8/Materials | Reached level 7 2965 | -8/Materials | Build established: Hacker-Bomber 3136 | -8/Materials | Reached level 8 3151 | -8/Materials | Garrison activated, responded to threat 3195 | -8/Materials | Destroyed 12 combat bots 3272 | -8/Materials | Reached level 9 3526 | -8/Materials | Identified exit to Factory 3526 | -8/Materials | Discovered exit to Factory (range 12) 3591 | -8/Materials | Entered Factory 3591 | -7/Factory | Upgraded with Propulsion slot (x1) 3591 | -7/Factory | Upgraded with Utility slot (x1) 3593 | -7/Factory | Reached level 10 3732 | -7/Factory | Build established: Hacker-Mutant 3922 | -7/Factory | Identified exit to Lower Caves 3922 | -7/Factory | Discovered exit to Lower Caves (range 7) 3957 | -7/Factory | Reached level 11 4232 | -7/Factory | Entered Lower Caves 4351 | -7/Lower Caves | Learned Factory stockpile data 4493 | -7/Lower Caves | Reached level 12 4528 | -7/Lower Caves | Build established: Hacker-Bomber 4686 | -7/Lower Caves | Identified exit to Lower Caves 4686 | -7/Lower Caves | Discovered exit to Lower Caves (range 4) 4689 | -7/Lower Caves | Attracted the attention of an 0b10 outpost 4758 | -7/Lower Caves | Spotted B-75 Beast 4770 | -7/Lower Caves | Destroyed B-75 Beast 4908 | -7/Lower Caves | Entered another Lower Caves area 4910 | -7/Lower Caves | Reached level 13 5018 | -7/Lower Caves | A Commander dispatched an escort 5026 | -7/Lower Caves | Identified exit to Factory 5026 | -7/Lower Caves | Learned Factory stockpile data 5212 | -7/Lower Caves | Build established: Hacker-Mutant 5249 | -7/Lower Caves | Identified exit to Data Miner 5249 | -7/Lower Caves | Discovered exit to Data Miner (range 6) 5275 | -7/Lower Caves | Attracted the attention of an 0b10 outpost 5296 | -7/Lower Caves | Reached level 14 5737 | -7/Lower Caves | Entered Factory 5737 | -6/Factory | Accompanied by 1 ally 5737 | -6/Factory | Upgraded with Utility slot (x1) 5738 | -6/Factory | Commander's escort returned to base 5738 | -6/Factory | Identified exit to Factory 5739 | -6/Factory | Reached level 15 5878 | -6/Factory | Upgraded with Propulsion slot (x1) 6036 | -6/Factory | Build established: Hacker-Scout 6605 | -6/Factory | Entered another Factory area 6607 | -5/Factory | Reached level 16 6607 | -5/Factory | Reached level 17 6933 | -5/Factory | Spotted B-75 Beast 6944 | -5/Factory | Destroyed B-75 Beast 7052 | -5/Factory | Reached level 18 7205 | -5/Factory | First assault squad dispatched 7281 | -5/Factory | Reached level 19 7415 | -5/Factory | Local fabrication network quarantined 7432 | -5/Factory | Reached level 20 7450 | -5/Factory | Fabricated Nova Cannon (x1) 7590 | -5/Factory | Reached level 21 7631 | -5/Factory | Garrison activated, responded to threat 7677 | -5/Factory | Core integrity fell below 50% 7696 | -5/Factory | Core integrity fell below 20% 7697 | -5/Factory | Destroyed by P-70 Sage with High-powered Shock Rifle Last Messages --------------- 07690_ G-67 Veteran destroyed. 07690_ M-28 Smith destroyed. 07691_ Overheating: System interference. 07691_ Plasma Cannon temporarily disabled. 07691_ Wave Gun temporarily disabled. 07691_ System corrupted: Matter fused (-5). 07691_ The unstable cave ceiling collapses. 07691_ G-50 Soldier IFF system glitched. 07692_ Overheating: Short circuit. 07692_ Broken Gravmag Array permanently disabled. 07694_ Power failure, Neutrino Core shutdown. 07694_ Overheating: Neutrino Core damaged (-24). 07694_ Overheating: Plasma Cannon damaged (-27). 07694_ Overheating: Wave Gun damaged (-21). 07694_ Overheating: Component Analysis Suite damaged (-4). 07695_ P-70 Sage resets L-41 Fighter, system corruption cleaned. 07696_ P-70 Sage resets G-50 Soldier, system corruption cleaned. 07696_ G-50 Soldier destroyed. 07696_ U-05 Engineer lays Concrete. 07697_ Overheating: Core damaged (-247). Map ----- +----------------------------------------------------+ | ??????????????????????????? | | ??????????????????????????? | | ??????????????????????????? | | ??????????????????????????? | | ??????????????????????????? | | ??????????????????????????? | | ??????????????????????????? | | ??????????????????????????? | | ??????????????????????????? | | ??????????????????????????? | | ??????????????????????????? | | ??????????????????????????? | | #############?????????????? | | # ! ] #?????????????? | | # #?? ??????????? | | # """" """" #? ??????????? | | # """" """ #/##/#########? | | # """" "" #? | | # """" " #? | | # " " %p +? | | # " !%===% #? | | # " l *%%=% % #? | | # % [ =* # #? | | #! ! % pu #? | | # ! #?#b #? | | # @ ##?# i #? | | ######## #####??# g #? | | ????????????##### +? | | ??????????### # ## | | ??????????#""""""""" # | | ?????????## " # | | ?????????#" " # | | ?????????#" ? " # | | ?????????#" " # | | ?????????#" " # | | ?????????# " # | | ?????????## " # | | ?????????? = " ## | | ????#? ?? # *%! # | | ????? ? ## # # | | ????? ??# ### | | ?????? ??# | | ?????? ???## %= | | ?????## ????## /######### | | ??????# ????##%##!% #? | | ???#### ##### " # %= !# | | ???# + # | | ???# # ! " | | ???# #### /=# = | | ???# + = ]# | +----------------------------------------------------+ Best States ------------- Heat Dissipation 49 Energy Generation 44 Energy Capacity 465 Matter Stores 400 Matter Capacity 400 Sight Range 18 Robot Scan Range 16 Terrain Scan Density 310 Resistance: KI 35 Resistance: TH 35 Resistance: EX 35 Resistance: EM 35 Resistance: I 35 Resistance: S 35 Resistance: P 35 Core Shielding 20 Melee Speed Boost 20 Evasion (%) 54 Targeting Accuracy 8 Target Analysis 5 Core Analysis 6 Offensive Hacking 20 Item Schematics ----------------- None Robot Schematics ------------------ None Fabricated ------------ Nova Cannon | x1 | -5/Factory | Preloaded Alien Tech Used ----------------- None Achievements -------------- Oh No You Don't! Challenges ------------ None RPGLIKE | -11 -10 -9 -9 -9 -8 -8 -7 -7 -7 -6 -5 --------- Run | Scr Mat Mat Min Exi Min Mat Fac Low Low Fac Fac Levels Raised 20 | . . 3 1 . . 4 2 1 2 1 6 XP Earned 36747 | 6000 100 4565 1350 350 843 5591 2769 2000 2784 1900 8495 XP Spent 26540 | . . . 10050 . 1600 3215 2700 2750 2100 4125 . Upgrades 67 | . . . 27 . 3 21 3 2 6 5 . Power Slot 1 | . . . . . 1 . . . . . . Propulsion Slot 3 | . . . . . 1 . 1 . . 1 . Utility Slot 5 | . . . 3 . . . 1 . . 1 . Weapon Slot 3 | . . . 3 . . . . . . . . Core Integrity 14 | . . . 3 . . 11 . . . . . Heat Dissipation 4 | . . . 1 . . 3 . . . . . Energy Generation 3 | . . . 1 . . . . . 2 . . Energy Storage 2 | . . . 1 . . . . . 1 . . Matter Storage 2 | . . . 2 . . . . . . . . Mass Support 5 | . . . 2 . . 2 1 . . . . Inventory Capacity 6 | . . . 4 . . . . 2 . . . Sight Range 2 | . . . 1 . . . . . . 1 . Sensor Range 8 | . . . 1 . . 3 . . 3 1 . Terrain Scan Density 3 | . . . 2 . . 1 . . . . . Ranged Accuracy 5 | . . . 2 . 1 1 . . . 1 . EX Damage % 1 | . . . 1 . . . . . . . . Protomatter Created 1353 | . . 10 1 . . 276 . 185 215 34 632 Integrity Restored 1593 | . . . . . . 234 . 300 435 14 610 Core 1593 | . . . . . . 234 . 300 435 14 610 Protomatter Decayed 465 | . . . 32 . . . . . 221 29 183 Game ------ Seed LongswordDataGenerator Manual? 1 Play Time 02:11:15 Cumulative 13.9 hours Start 2019.12.25 @ 12:51:49 End 2019.12.28 @ 00:50:15 Sessions 7 Manual Loads 0 Difficulty Explorer Special Mode Winter2019/RPGLIKE Game No. 17 Rogue 12 Adventurer 0 Explorer 5 Win Type - Total 0 Types 0/0/0/0/0/0/0 Lore% 5 Gallery% 19 Achievement% 17 Wizard Run 0 Options --------- ASCII 0 Keyboard 0 Movement Numpad Keybinds 0 Fullscreen 1 Font 16/SmallcapsGlow Map View 75x55 Tactical HUD 1 Map Filters NONE Filters NONE Steam 1 RUN: 82757972-e905-44c9-ab77-ab51458d7cd5